Workbook

Sheet 2018年
A1: 日期 | B1: 员工编号 | C1: 绩效奖金 | D1: 超额奖 | E1: 营销奖 | F1: 其他 | G1: 年度应发奖金总额
A2: 2018-12-31 | B2: CG0200001 | C2: 186068.75 | D2: 183824.07 | G2: =SUM(C2:F2) -> 369892.82
A3: 2018-12-31 | B3: CL0200001 | C3: 171399.78 | D3: 229780.09 | G3: =SUM(C3:F3) -> 401179.87
A4: 2018-12-31 | B4: CL0200218 | C4: 182330.12 | D4: 183824.07 | G4: 366154.19
A5: 2018-12-31 | B5: CL0200008 | C5: 128032.16 | D5: 183824.07 | G5: 311856.23
A6: 2018-12-31 | B6: CL0200185 | C6: 180035.68 | D6: 183824.07 | G6: 363859.75
A7: 2018-12-31 | B7: CL0200022 | C7: 180705.28 | D7: 183824.07 | G7: 364529.35
A8: 2018-12-31 | B8: CL0200414 | C8: 0 | D8: 114890.04 | G8: 114890.04
A9: 2018-12-31 | B9: CL0200128 | C9: 19187.73 | G9: =SUM(C9:F9) -> 19187.73
A10: 2018-12-31 | B10: CL0200379 | C10: 9453.16 | G10: 9453.16
A11: 2018-12-31 | B11: CL0200414 | C11: 213329.6 | G11: 213329.6
A12: 2018-12-31 | B12: CL0200096 | C12: 67775.4 | G12: 67775.4
A13: 2018-12-31 | B13: CL0200018 | C13: 18903.48 | G13: 18903.48
A14: 2018-12-31 | B14: CG0200005 | C14: 19266.1984 | G14: 19266.1984
A15: 2018-12-31 | B15: CL0200473 | C15: 16103.12 | G15: 16103.12
A16: 2018-12-31 | B16: CL0200184 | C16: 10355.28 | G16: 10355.28
A17: 2018-12-31 | B17: CL0200219 | C17: 7755.62 | G17: 7755.62
A18: 2018-12-31 | B18: CL0200267 | C18: 7955.2791 | G18: 7955.2791
A19: 2018-12-31 | B19: CL0200266 | C19: 3086.67 | G19: 3086.67
A20: 2018-12-31 | B20: CL0200288 | C20: 4992.96 | G20: 4992.96
A21: 2018-12-31 | B21: CL0200318 | C21: 1867.14 | G21: 1867.14
A22: 2018-12-31 | B22: CL0200356 | C22: 4814.64 | G22: 4814.64
A23: 2018-12-31 | B23: CL0200462 | C23: 4413.42 | G23: 4413.42
A24: 2018-12-31 | B24: CL0200277 | C24: 144613.36 | G24: 144613.36
A25: 2018-12-31 | B25: CL0200004 | C25: 25340.05 | G25: 25340.05
A26: 2018-12-31 | B26: CL0200425 | C26: 5049.35 | G26: 5049.35
A27: 2018-12-31 | B27: CL0200371 | C27: 11831.12 | G27: 11831.12
A28: 2018-12-31 | B28: CL0200308 | C28: 9792 | G28: 9792
A29: 2018-12-31 | B29: CL0200028 | C29: 20994.57 | G29: 20994.57
A30: 2018-12-31 | B30: CL0200216 | C30: 7586.85 | G30: 7586.85
A31: 2018-12-31 | B31: CL0200026 | C31: 11614.35 | G31: 11614.35
A32: 2018-12-31 | B32: CL0200209 | C32: 11019.61 | G32: 11019.61
A33: 2018-12-31 | B33: CL0200228 | C33: 17069.96 | G33: 17069.96
A34: 2018-12-31 | B34: CL0200236 | C34: 6991.14 | G34: 6991.14
A35: 2018-12-31 | B35: CL0200262 | C35: 5180.48 | G35: 5180.48
A36: 2018-12-31 | B36: CL0200061 | C36: 2789.32 | G36: 2789.32
A37: 2018-12-31 | B37: CL0200264 | C37: 2000 | G37: 2000
A38: 2018-12-31 | B38: CL0200244 | C38: 73053.31048 | G38: 73053.31048
A39: 2018-12-31 | B39: CL0200165 | C39: 20612.13609 | G39: 20612.13609
A40: 2018-12-31 | B40: CL0200484 | C40: 5353.188518 | G40: 5353.188518
A41: 2018-12-31 | B41: CL0200500 | C41: 631.3870837 | G41: 631.3870837
A42: 2018-12-31 | B42: CL0200169 | C42: 17847.03276 | G42: 17847.03276
A43: 2018-12-31 | B43: CL0200224 | C43: 57542.17134 | G43: 57542.17134
A44: 2018-12-31 | B44: CL0200025 | C44: 48222.21224 | G44: 48222.21224
A45: 2018-12-31 | B45: CL0200060 | C45: 9125.551758 | G45: 9125.551758
A46: 2018-12-31 | B46: CL0200478 | C46: 9403.574568 | G46: 9403.574568
A47: 2018-12-31 | B47: CL0200012 | C47: 44862.29417 | G47: 44862.29417
A48: 2018-12-31 | B48: CL0200475 | C48: 45321.0515 | G48: 45321.0515
A49: 2018-12-31 | B49: CL0200053 | C49: 79285.86 | G49: 79285.86
A50: 2018-12-31 | B50: CL0200032 | C50: 21970.3 | G50: 21970.3
A51: 2018-12-31 | B51: CL0200162 | C51: 8432.238 | G51: 8432.238
A52: 2018-12-31 | B52: CL0200050 | C52: 26050.816 | G52: 26050.816
A53: 2018-12-31 | B53: CL0200332 | C53: 20568.2235 | G53: 20568.2235
A54: 2018-12-31 | B54: CL0200329 | C54: 13033.669 | G54: 13033.669
A55: 2018-12-31 | B55: CL0200353 | C55: 11241.141 | G55: 11241.141
A56: 2018-12-31 | B56: CL0200474 | C56: 4017.89808 | G56: 4017.89808
A57: 2018-12-31 | B57: CL0200293 | C57: 4000 | G57: 4000
A58: 2018-12-31 | B58: CL0200294 | C58: 3000 | G58: 3000
A59: 2018-12-31 | B59: CL0200490 | C59: 690 | G59: 690
A60: 2018-12-31 | B60: CL0200019 | C60: 30425.3 | G60: 30425.3
A61: 2018-12-31 | B61: CL0200038 | C61: 10600.6605 | G61: 10600.6605
A62: 2018-12-31 | B62: CL0200074 | C62: 10414.8975 | G62: 10414.8975
A63: 2018-12-31 | B63: CL0200122 | C63: 14436.846 | G63: 14436.846
A64: 2018-12-31 | B64: CL0200233 | C64: 10414.8975 | G64: 10414.8975
A65: 2018-12-31 | B65: CL0200447 | C65: 6353.087 | G65: 6353.087
A66: 2018-12-31 | B66: CL0200485 | C66: 3749.365 | G66: 3749.365
A67: 2018-12-31 | B67: CL0200444 | C67: 5311.602 | G67: 5311.602
A68: 2018-12-31 | B68: CL0200328 | C68: 10350.25 | G68: 10350.25
A69: 2018-12-31 | B69: CL0200046 | C69: 14050.595 | G69: 14050.595
A70: 2018-12-31 | B70: CL0200352 | C70: 14336.032 | G70: 14336.032
A71: 2018-12-31 | B71: CL0200119 | C71: 2250 | G71: 2250
A72: 2018-12-31 | B72: CL0200319 | C72: 2100 | G72: 2100
A73: 2018-12-31 | B73: CL0200333 | C73: 2100 | G73: =SUM(C73:F73) -> 2100
A74: 2018-12-31 | B74: CL0200434 | C74: 1575 | G74: 1575
A75: 2018-12-31 | B75: CL0200433 | C75: 1764 | G75: 1764
A76: 2018-12-31 | B76: CL0200120 | C76: 2100 | G76: 2100
A77: 2018-12-31 | B77: CL0200108 | C77: 94496.41 | D77: 383151.8348 | G77: 477648.2448
A78: 2018-12-31 | B78: CL0200005 | C78: 61447.47 | D78: 209951.8348 | G78: 271399.3048
A79: 2018-12-31 | B79: CL0200209 | C79: 42193.32545 | D79: 148725.6561 | G79: 190918.9815
A80: 2018-12-31 | B80: CL0200003 | C80: 40649.57455 | D80: 139966.4938 | G80: 180616.0683
A81: 2018-12-31 | B81: CL7770010 | C81: 9123.73 | D81: 5000 | G81: 14123.73
A82: 2018-12-31 | B82: CL0200032 | C82: 9123.73 | D82: 10000 | G82: 19123.73
A83: 2018-12-31 | B83: CL0200126 | C83: 42831.18 | D83: 30000 | G83: =SUM(C83:F83) -> 72831.18
A84: 2018-12-31 | B84: CL0200036 | C84: 22058.84 | D84: 5000 | G84: 27058.84
A85: 2018-12-31 | B85: CL0200006 | C85: 20354.6 | D85: 5000 | G85: 25354.6
A86: 2018-12-31 | B86: CL0200011 | C86: 14952.5 | G86: 14952.5
A87: 2018-12-31 | B87: CL0200054 | C87: 14049.69 | G87: 14049.69
A88: 2018-12-31 | B88: CL0200027 | C88: 13652.4 | G88: 13652.4
A89: 2018-12-31 | B89: CL0200134 | C89: 6331.88 | G89: 6331.88
A90: 2018-12-31 | B90: CL0200137 | C90: 12749.26 | G90: 12749.26
A91: 2018-12-31 | B91: CL0200350 | C91: 10186.86 | G91: 10186.86
A92: 2018-12-31 | B92: CL0200349 | C92: 10693.62 | G92: 10693.62
A93: 2018-12-31 | B93: CL0200404 | C93: 9294.86 | G93: 9294.86
A94: 2018-12-31 | B94: CL0200062 | C94: 13855.78 | G94: 13855.78
A95: 2018-12-31 | B95: CL0200197 | C95: 12247.11 | G95: 12247.11
A96: 2018-12-31 | B96: CL0200322 | C96: 11604.04 | G96: 11604.04
A97: 2018-12-31 | B97: CL0200445 | C97: 5984.83 | G97: 5984.83
A98: 2018-12-31 | B98: CL0200417 | C98: 5317.17 | F98: 2000 | G98: 7317.17
A99: 2018-12-31 | B99: CL0200183 | C99: 6455.3 | G99: 6455.3
A100: 2018-12-31 | B100: CL0200141 | C100: 12158.12 | G100: 12158.12
A101: 2018-12-31 | B101: CL0200207 | C101: 8014.66 | G101: 8014.66
A102: 2018-12-31 | B102: CL0200351 | C102: 10088.75 | G102: 10088.75
A103: 2018-12-31 | B103: CL0200405 | C103: 9531.17 | G103: 9531.17
A104: 2018-12-31 | B104: CL0200135 | C104: 13247.6 | G104: 13247.6
A105: 2018-12-31 | B105: CL0200284 | C105: 9685.2 | G105: 9685.2
A106: 2018-12-31 | B106: CL0200501 | C106: 301.69 | G106: 301.69
A107: 2018-12-31 | B107: CL0200323 | C107: 6979.78 | G107: 6979.78
A108: 2018-12-31 | B108: CL0200220 | C108: 2898.7 | D108: 6000 | G108: 8898.7
A109: 2018-12-31 | B109: CL0200034 | C109: 42262.66 | D109: 30000 | G109: 72262.66
A110: 2018-12-31 | B110: CL0200215 | C110: 21254.08 | D110: 5000 | G110: 26254.08
A111: 2018-12-31 | B111: CL0200356 | C111: 5355.94 | G111: 5355.94
A112: 2018-12-31 | B112: CL0200190 | C112: 11373.62 | G112: 11373.62
A113: 2018-12-31 | B113: CL0200143 | C113: 13773.92 | G113: 13773.92
A114: 2018-12-31 | B114: CL0200267 | C114: 3143 | G114: 3143
A115: 2018-12-31 | B115: CL0200268 | C115: 2737.45 | G115: 2737.45
A116: 2018-12-31 | B116: CL0200432 | C116: 9251.56 | G116: 9251.56
A117: 2018-12-31 | B117: CL0200004 | C117: 23184.78 | D117: 20000 | G117: 43184.78
A118: 2018-12-31 | B118: CL0200115 | C118: 21807.51 | D118: 5000 | G118: 26807.51
A119: 2018-12-31 | B119: CL0200240 | C119: 14719.36 | G119: 14719.36
A120: 2018-12-31 | B120: CL0200086 | C120: 13598.82 | G120: 13598.82
A121: 2018-12-31 | B121: CL0200419 | C121: 4384.36 | F121: 2000 | G121: 6384.36
A122: 2018-12-31 | B122: CL0200149 | C122: 4705.86 | G122: 4705.86
A123: 2018-12-31 | B123: CL0200140 | C123: 7951.39 | G123: 7951.39
A124: 2018-12-31 | B124: CL0200365 | C124: 9245.52 | G124: 9245.52
A125: 2018-12-31 | B125: CL0200366 | C125: 11146.41 | G125: 11146.41
A126: 2018-12-31 | B126: CL0200334 | C126: 12788.09 | G126: 12788.09
A127: 2018-12-31 | B127: CL0200403 | C127: 11814.31 | G127: 11814.31
A128: 2018-12-31 | B128: CL0200370 | C128: 18838.15 | G128: 18838.15
A129: 2018-12-31 | B129: CL0200421 | C129: 5022.28 | F129: 1000 | G129: 6022.28
A130: 2018-12-31 | B130: CL0200393 | C130: 9762.16 | F130: 3000 | G130: 12762.16
A131: 2018-12-31 | B131: CL0200090 | C131: 21728.08 | E131: 80000 | G131: 101728.08
A132: 2018-12-31 | B132: CL0200040 | C132: 15247.22 | E132: 20000 | G132: 35247.22
A133: 2018-12-31 | B133: CL0200007 | C133: 21010.24 | E133: 64300 | G133: 85310.24
A134: 2018-12-31 | B134: CL0200422 | C134: 5825.99 | E134: 6000 | F134: 2000 | G134: 13825.99
A135: 2018-12-31 | B135: CL0200091 | C135: 43141.27 | D135: 30000 | G135: 73141.27
A136: 2018-12-31 | B136: CL0200085 | C136: 19826.02 | D136: 5000 | G136: =SUM(C136:F136) -> 24826.02
A137: 2018-12-31 | B137: CL0200080 | C137: 11861.04 | G137: 11861.04
A138: 2018-12-31 | B138: CL0200031 | C138: 13648.32 | G138: 13648.32
A139: 2018-12-31 | B139: CL0200113 | C139: 11525.92 | G139: 11525.92
A140: 2018-12-31 | B140: CL0200138 | C140: 11450.27 | F140: 2000 | G140: 13450.27
A141: 2018-12-31 | B141: CL0200097 | C141: 15224.003 | G141: 15224.003
A142: 2018-12-31 | B142: CL0200204 | C142: 9450.2745 | G142: 9450.2745
A143: 2018-12-31 | B143: CL0200453 | C143: 5353.01159 | F143: 2000 | G143: 7353.01159
A144: 2018-12-31 | B144: CL0200117 | C144: 10705.266 | G144: 10705.266
A145: 2018-12-31 | B145: CL0200335 | C145: 8987.0585 | F145: 1200 | G145: 10187.0585
A146: 2018-12-31 | B146: CL0200450 | C146: 5337.8963 | G146: 5337.8963
A147: 2018-12-31 | B147: CL0200131 | C147: 11361.0405 | G147: 11361.0405
A148: 2018-12-31 | B148: CL0200136 | C148: 14011.4785 | F148: 2000 | G148: 16011.4785
A149: 2018-12-31 | B149: CL0200144 | C149: 8987.0585 | G149: 8987.0585
A150: 2018-12-31 | B150: CL0200164 | C150: 9927.966 | G150: 9927.966
A151: 2018-12-31 | B151: CL0200186 | C151: 10427.966 | G151: 10427.966
A152: 2018-12-31 | B152: CL0200251 | C152: 9705.266 | G152: 9705.266
A153: 2018-12-31 | B153: CL0200221 | C153: 8768.09382 | G153: 8768.09382
A154: 2018-12-31 | B154: CL0200060 | C154: 18348.2649 | D154: 3500 | G154: 21848.2649
A155: 2018-12-31 | B155: CL0200041 | C155: 16241.401 | D155: 5000 | G155: 21241.401
A156: 2018-12-31 | B156: CL0200033 | C156: 15338.68 | G156: 15338.68
A157: 2018-12-31 | B157: CL0200061 | C157: 8440.052985 | G157: 8440.052985
A158: 2018-12-31 | B158: CL0200079 | C158: 9594.5535 | G158: 9594.5535
A159: 2018-12-31 | B159: CL0200081 | C159: 12339.553 | G159: 12339.553
A160: 2018-12-31 | B160: CL0200101 | C160: 12079.538 | G160: 12079.538
A161: 2018-12-31 | B161: CL0200095 | C161: 9853.438 | G161: 9853.438
A162: 2018-12-31 | B162: CL0200103 | C162: 11362.801 | F162: 2000 | G162: 13362.801
A163: 2018-12-31 | B163: CL0200177 | C163: 9362.801 | G163: 9362.801
A164: 2018-12-31 | B164: CL0200063 | C164: 9594.5535 | G164: 9594.5535
A165: 2018-12-31 | B165: CL0200345 | C165: 10904.9485 | G165: 10904.9485
A166: 2018-12-31 | B166: CL0200499 | C166: 300 | G166: 300
A167: 2018-12-31 | B167: CL5920018 | C167: 3639.41865 | G167: 3639.41865
A168: 2018-12-31 | B168: CL0200449 | C168: 1000 | G168: 1000
A169: 2018-12-31 | B169: CL5920001 | C169: 20521.6 | D169: 62134.48607 | G169: 82656.08607
A170: 2018-12-31 | B170: CL5920002 | C170: 23695 | G170: 23695
A171: 2018-12-31 | B171: CL5920009 | C171: 16480.8 | G171: 16480.8
A172: 2018-12-31 | B172: CL5920006 | C172: 14210.69 | G172: 14210.69
A173: 2018-12-31 | B173: CL5920008 | C173: 11842.24 | G173: 11842.24
A174: 2018-12-31 | B174: CL5920015 | C174: 11603.14 | G174: 11603.14
A175: 2018-12-31 | B175: CL5920004 | C175: 23695 | G175: 23695
A176: 2018-12-31 | B176: CL5920010 | C176: 10415.9 | G176: 10415.9
A177: 2018-12-31 | B177: CL5920012 | C177: 9331.2 | G177: 9331.2
A178: 2018-12-31 | B178: CL5920016 | C178: 3230 | G178: 3230
A179: 2018-12-31 | B179: CL5920026 | C179: 9214.05 | G179: 9214.05
A180: 2018-12-31 | B180: CL5920028 | C180: 3686 | G180: 3686
A181: 2018-12-31 | B181: CL5920014 | C181: 9880 | G181: 9880
A182: 2018-12-31 | B182: CL5920031 | C182: 8826.09 | G182: 8826.09
A183: 2018-12-31 | B183: CL5920021 | C183: 12075.8 | G183: 12075.8
A184: 2018-12-31 | B184: CL5920007 | C184: 10941.2 | G184: 10941.2
A185: 2018-12-31 | B185: CL5920022 | C185: 12485.84 | G185: 12485.84
A186: 2018-12-31 | B186: CL5920018 | C186: 3556.56 | G186: 3556.56
A187: 2018-12-31 | B187: CL5920013 | C187: 22984.15 | G187: 22984.15
A188: 2018-12-31 | B188: CL5920003 | C188: 15317.5 | G188: 15317.5
A189: 2018-12-31 | B189: CL5920024 | C189: 9807.6 | G189: 9807.6
A190: 2018-12-31 | B190: CL5920032 | C190: 11223.3 | G190: 11223.3
A191: 2018-12-31 | B191: CL5920019 | C191: 12514.92 | G191: 12514.92
A192: 2018-12-31 | B192: CL5920039 | C192: 1881.56 | G192: 1881.56
A193: 2018-12-31 | B193: CL5920038 | C193: 5305.56 | G193: 5305.56
A194: 2018-12-31 | B194: CL0417007 | C194: 6477.02 | G194: 6477.02
A195: 2018-12-31 | B195: CL5920030 | C195: 10862.88 | G195: 10862.88
A196: 2018-12-31 | B196: CL5920033 | C196: 6773.78 | G196: 6773.78
A197: 2018-12-31 | B197: CL5920011 | C197: 14159.2 | G197: 14159.2
A198: 2018-12-31 | B198: CL5920005 | C198: 14802.8 | G198: 14802.8
A199: 2018-12-31 | B199: CL4300001 | C199: 42900.63 | D199: 10000 | G199: 52900.63
A200: 2018-12-31 | B200: CL4300006 | C200: 10376.66 | G200: =SUM(C200:F200) -> 10376.66
... 257 more rows
